[Event "24th Barcelona Open-A 2019"]
[Site "Barcelona"]
[Date "2019.10.03"]
[Round "7.19"]
[White "Palacin Martin, Ricardo"]
[Black "Garcia Ruiz, Adrian"]
[Result "1/2-1/2"]
[ECO "D37"]
[WhiteElo "1985"]
[BlackElo "1955"]
[Annotator "NA"]
[PlyCount "85"]
[EventDate "2019.09.27"]
[EventType "swiss"]
[EventCountry "ESP"]
[SourceTitle "playchess.com"]
[Source "ChessBase"]
[SourceQuality "1"]
[TimeControl "5400+30"]

1. d4 {[%emt 0:00:00]} Nf6 {[%emt 0:14:32]} 2. c4 {[%emt 0:00:00]} e6 {[%emt 0:00:02]} 3. Nc3 {[%emt 0:00:07]} d5 {[%emt 0:00:46]} 4. Nf3 {[%emt 0:00:53]} dxc4 {[%emt 0:00:02]} 5. e3 {[%emt 0:01:38]} a6 {[%emt 0:05:18]} 6. a4 {[%emt 0:03:51]} Bb4 {[%emt 0:00:01]} 7. Bd2 O-O 8. Bxc4 {[%emt 0:01:20]} c5 {[%emt 0:00:40]} 9. O-O {[%emt 0:03:41]} Nc6 {[%emt 0:03:15]} 10. dxc5 {[%emt 0:00:49]} Bxc5 {[%emt 0:01:54]} 11. Qe2 {[%emt 0:01:06]} b6 {[%emt 0:01:10]} 12. Rfd1 {[%emt 0:01:30]} Qe7 13. e4 {[%emt 0:00:45]} Ng4 {[%emt 0:06:49]} 14. Be1 {[%emt 0:13:54]} Bb7 {[%emt 0:04:55]} 15. Rac1 {[%emt 0:05:19]} Rfd8 16. Ba2 {[%emt 0:01:49]} Rxd1 {[%emt 0:03:01]} 17. Nxd1 {[%emt 0:04:41]} Qd6 {[%emt 0:10:04]} 18. Bc3 Rd8 {[%emt 0:03:06]} 19. h3 {[%emt 0:05:02]} Nge5 {[%emt 0:01:32]} 20. Bb1 {[%emt 0:01:43]} Nxf3+ 21. Qxf3 {[%emt 0:04:13]} Nd4 {[%emt 0:01:47]} 22. Bxd4 {[%emt 0:00:37]} Qxd4 {[%emt 0:02:51]} 23. Nc3 {[%emt 0:05:25]} Qe5 {[%emt 0:04:38]} 24. Rd1 Bd6 25. g3 {[%emt 0:02:53]} Rc8 {[%emt 0:05:18]} 26. Qe2 {[%emt 0:07:01]} Bc5 {[%emt 0:08:19]} 27. Kh2 {[%emt 0:11:52]} Bb4 {[%emt 0:03:30]} 28. Qd2 {[%emt 0:10:20]} g6 {[%emt 0:01:11]} 29. Rc1 h5 30. Qf4 {[%emt 0:01:36]} Qxf4 {[%emt 0:02:05]} 31. gxf4 Rc4 32. Ne2 {[%emt 0:00:54]} Rxc1 {[%emt 0:03:59]} 33. Nxc1 {[%emt 0:00:05]} Bd2 {[%emt 0:00:01]} 34. Ne2 {[%emt 0:00:07]} Bc6 {[%emt 0:00:34]} 35. Bd3 {[%emt 0:00:13]} Bxa4 {[%emt 0:02:39]} 36. Bxa6 f5 37. exf5 {[%emt 0:01:47]} exf5 {[%emt 0:02:38]} 38. Kg3 {[%emt 0:00:11]} Kg7 {[%emt 0:00:26]} 39. Bc4 {[%emt 0:00:36]} Bc6 {[%emt 0:00:52]} 40. h4 {[%emt 0:00:41]} Bb4 {[%emt 0:01:09]} 41. Nd4 {[%emt 0:00:45]} Be4 {[%emt 0:00:26]} 42. Be2 {[%emt 0:00:16]} Kf6 {[%emt 0:03:01]} 43. Bc4 1/2-1/2

[Event "24th Barcelona Open-A 2019"]
[Site "Barcelona"]
[Date "2019.10.03"]
[Round "7.20"]
[White "Vargas Drechsler, Carlos"]
[Black "Denisov, Denis A."]
[Result "1-0"]
[ECO "C65"]
[WhiteElo "1878"]
[BlackElo "2208"]
[Annotator "NA"]
[PlyCount "85"]
[EventDate "2019.09.27"]
[EventType "swiss"]
[EventCountry "ESP"]
[SourceTitle "playchess.com"]
[Source "ChessBase"]
[SourceQuality "1"]
[TimeControl "5400+30"]

1. e4 e5 2. Nf3 Nc6 3. Bb5 Nf6 4. d3 Bc5 5. Bxc6 dxc6 6. h3 O-O 7. Bg5 Qd6 8. Nbd2 Nd7 9. O-O Re8 10. Bh4 Qg6 11. Kh2 f6 12. g4 Qf7 13. Bg3 Nf8 14. c3 Ne6 15. b4 Bf8 16. Nc4 Rd8 17. Ncxe5 fxe5 18. Nxe5 Qe8 19. f4 Bd6 20. Nc4 g5 21. Nxd6 cxd6 22. f5 Nf8 23. Qb3+ Qf7 24. Qxf7+ Kxf7 25. d4 a5 26. a3 b6 27. e5 dxe5 28. dxe5 Rd2+ 29. Rf2 Rxf2+ 30. Bxf2 axb4 31. cxb4 b5 32. Bd4 Bd7 33. Bb2 Ke7 34. Rd1 Be8 35. Rd6 Ra7 36. Bc1 Bd7 37. Bxg5+ Kf7 38. Rf6+ Kg8 39. Bh6 Ng6 40. fxg6 hxg6 41. g5 Bf5 42. e6 Ra8 43. e7 1-0

[Event "24th Barcelona Open-A 2019"]
[Site "Barcelona"]
[Date "2019.10.04"]
[Round "8.1"]
[White "Perunovic, Milos"]
[Black "Donchenko, Alexander"]
[Result "1/2-1/2"]
[ECO "B12"]
[WhiteElo "2569"]
[BlackElo "2631"]
[Annotator "ChessBase"]
[PlyCount "57"]
[EventDate "2019.09.27"]
[EventType "swiss"]
[EventCountry "ESP"]
[SourceTitle "playchess.com"]
[Source "ChessBase"]
[SourceQuality "1"]
[TimeControl "5400+30"]

1. e4 {[%emt 0:01:27]} c6 {[%emt 0:00:00]} 2. d4 {[%emt 0:00:21]} d5 {[%emt 0:00:00]} 3. e5 {[%emt 0:00:23]} Bf5 {[%emt 0:00:07]} 4. h4 {[%emt 0:00:32]} h5 {[%emt 0:00:24]} 5. c4 {[%emt 0:00:40]} e6 {[%emt 0:00:20]} 6. Nc3 {[%emt 0:00:18]} Ne7 {[%emt 0:00:22]} 7. Nge2 {[%emt 0:02:07]} Nd7 {[%emt 0:00:33]} 8. Ng3 {[%emt 0:00:40]} Bg6 {[%emt 0:00:15]} 9. Bg5 {[%emt 0:07:15]} Qb6 {[%emt 0:00:29]} 10. Rc1 {[%emt 0:00:26]} Qxb2 {[%emt 0:00:17]} 11. Bd3 {[%emt 0:01:01]} Bxd3 {[%emt 0:00:13]} 12. Qxd3 {[%emt 0:00:07]} dxc4 {[%emt 0:00:05]} 13. Qxc4 {[%emt 0:00:22]} Nb6 {[%emt 0:00:08]} 14. Qd3 {[%emt 0:00:14]} Ned5 {[%emt 0:00:14]} 15. O-O {[%emt 0:09:02]} Qa3 {[%emt 0:00:59]} 16. Rfd1 {[%emt 0:18:17]} Nxc3 {[%emt 0:00:30]} 17. Rxc3 {[%emt 0:01:42]} Qxa2 {[%emt 0:00:20]} 18. Rb3 {[%emt 0:08:48]} Qa6 {[%emt 0:00:37]} 19. Qxa6 {[%emt 0:17:37]} bxa6 {[%emt 0:00:15]} 20. Ra1 {[%emt 0:00:20]} Nd5 {[%emt 0:39:17]} 21. Rb7 {[%emt 0:08:14]} c5 {[%emt 0:08:06]} 22. dxc5 {[%emt 0:09:15]} Bxc5 {[%emt 0:00:34]} 23. Ne4 {[%emt 0:00:18]} Bb4 {[%emt 0:00:55]} 24. Nd6+ {[%emt 0:03:30]} Bxd6 {[%emt 0:00:45]} 25. exd6 {[%emt 0:00:06]} O-O {[%emt 0:05:23]} 26. Rxa6 {[%emt 0:00:43]} Nf6 {[%emt 0:06:25]} 27. Raxa7 {[%emt 0:01:50]} Rxa7 {[%emt 0:00:49]} 28. Rxa7 {[%emt 0:00:05]} Rd8 {[%emt 0:00:11]} 29. Ra5 {[%emt 0:04:36]} 1/2-1/2

[Event "24th Barcelona Open-A 2019"]
[Site "Barcelona"]
[Date "2019.10.04"]
[Round "8.2"]
[White "Svane, Rasmus"]
[Black "Gharamian, Tigran"]
[Result "1/2-1/2"]
[ECO "D35"]
[WhiteElo "2592"]
[BlackElo "2590"]
[Annotator "ChessBase"]
[PlyCount "34"]
[EventDate "2019.09.27"]
[EventType "swiss"]
[EventCountry "ESP"]
[SourceTitle "playchess.com"]
[Source "ChessBase"]
[SourceQuality "1"]
[TimeControl "5400+30"]

1. c4 {[%emt 0:00:00]} e6 {[%emt 0:00:00]} 2. Nc3 {[%emt 0:00:00]} d5 {[%emt 0:00:00]} 3. d4 Nf6 {[%emt 0:00:16]} 4. cxd5 {[%emt 0:00:00]} exd5 {[%emt 0:00:08]} 5. Bg5 {[%emt 0:00:01]} Be7 {[%emt 0:01:47]} 6. e3 {[%emt 0:00:13]} c6 {[%emt 0:00:32]} 7. Qc2 {[%emt 0:03:44]} Nbd7 {[%emt 0:12:19]} 8. Bd3 {[%emt 0:01:19]} Nh5 {[%emt 0:03:00]} 9. Bxe7 {[%emt 0:00:07]} Qxe7 {[%emt 0:00:03]} 10. O-O-O {[%emt 0:01:25]} Nb6 {[%emt 0:06:31]} 11. Kb1 {[%emt 0:00:14]} g6 {[%emt 0:03:12]} 12. h3 {[%emt 0:11:50]} Be6 {[%emt 0:01:05]} 13. Nge2 {[%emt 0:16:20]} Ng7 {[%emt 0:06:36]} 14. f3 {[%emt 0:19:35]} Nf5 {[%emt 0:07:51]} 15. Qc1 {[%emt 0:01:20]} O-O-O {[%emt 0:01:57]} 16. Nf4 {[%emt 0:02:33]} Kb8 {[%emt 0:02:04]} 17. g4 {[%emt 0:11:21]} Nh4 {[%emt 0:10:33]} 1/2-1/2

[Event "24th Barcelona Open-A 2019"]
[Site "Barcelona"]
[Date "2019.10.04"]
[Round "8.3"]
[White "Kamsky, Gata"]
[Black "Del Rio De Angelis, Salvador G."]
[Result "1-0"]
[ECO "C00"]
[WhiteElo "2685"]
[BlackElo "2488"]
[Annotator "ChessBase"]
[PlyCount "87"]
[EventDate "2019.09.27"]
[EventType "swiss"]
[EventCountry "ESP"]
[SourceTitle "playchess.com"]
[Source "ChessBase"]
[SourceQuality "1"]
[TimeControl "5400+30"]

1. e4 {[%emt 0:00:39]} e6 {[%emt 0:00:09]} 2. Qe2 {[%emt 0:00:45]} c5 {[%emt 0:01:44]} 3. Nf3 {[%emt 0:00:19]} Nc6 {[%emt 0:00:42]} 4. g3 {[%emt 0:00:43]} d6 {[%emt 0:00:54]} 5. Bg2 {[%emt 0:00:08]} Nf6 {[%emt 0:00:06]} 6. O-O {[%emt 0:00:09]} Be7 {[%emt 0:00:06]} 7. c3 {[%emt 0:04:01]} O-O {[%emt 0:00:41]} 8. Rd1 {[%emt 0:03:39]} b6 {[%emt 0:12:04]} 9. d4 {[%emt 0:01:22]} cxd4 {[%emt 0:10:41]} 10. Nxd4 {[%emt 0:00:11]} Nxd4 {[%emt 0:03:14]} 11. cxd4 {[%emt 0:02:58]} a5 {[%emt 0:04:49]} 12. Nc3 {[%emt 0:05:21]} Ba6 {[%emt 0:00:09]} 13. Qe1 {[%emt 0:00:08]} Rc8 {[%emt 0:00:19]} 14. Bg5 {[%emt 0:02:47]} Nd7 {[%emt 0:03:13]} 15. Be3 {[%emt 0:00:23]} Qc7 {[%emt 0:07:44]} 16. a4 {[%emt 0:12:17]} Rfe8 {[%emt 0:03:23]} 17. Rac1 {[%emt 0:05:25]} Qb8 {[%emt 0:00:15]} 18. h3 {[%emt 0:06:40]} Bf8 {[%emt 0:04:42]} 19. Kh2 {[%emt 0:00:41]} Nf6 {[%emt 0:01:13]} 20. f3 {[%emt 0:09:01]} Nd7 {[%emt 0:03:41]} 21. Qf2 {[%emt 0:00:23]} Bc4 {[%emt 0:02:38]} 22. Bf1 {[%emt 0:01:57]} Qb7 {[%emt 0:03:18]} 23. Bxc4 {[%emt 0:04:27]} Rxc4 {[%emt 0:00:06]} 24. d5 {[%emt 0:00:03]} Rec8 {[%emt 0:02:46]} 25. dxe6 {[%emt 0:02:19]} fxe6 {[%emt 0:00:07]} 26. Rd4 {[%emt 0:05:14]} Rxd4 {[%emt 0:03:47]} 27. Bxd4 {[%emt 0:00:25]} Nc5 {[%emt 0:00:20]} 28. Rd1 {[%emt 0:02:35]} Qc6 {[%emt 0:03:25]} 29. Qc2 {[%emt 0:00:15]} Nd7 {[%emt 0:01:31]} 30. Qd3 {[%emt 0:06:08]} Qc4 {[%emt 0:01:02]} 31. Kg2 {[%emt 0:01:48]} Qb3 {[%emt 0:02:00]} 32. Rd2 {[%emt 0:01:27]} Rc4 {[%emt 0:02:34]} 33. f4 {[%emt 0:06:08]} Nc5 {[%emt 0:06:28]} 34. Bxc5 {[%emt 0:01:46]} bxc5 {[%emt 0:00:09]} 35. Rf2 {[%emt 0:00:46]} Rxa4 {[%emt 0:01:34]} 36. f5 {[%emt 0:00:49]} Rd4 {[%emt 0:10:27]} 37. Qf3 {[%emt 0:00:51]} e5 {[%emt 0:00:53]} 38. f6 {[%emt 0:01:03]} Qf7 {[%emt 0:01:33]} 39. Nd5 {[%emt 0:00:16]} gxf6 {[%emt 0:02:37]} 40. Nxf6+ {[%emt 0:00:37]} Kh8 {[%emt 0:00:06]} 41. Qg4 {[%emt 0:01:33]} Bh6 {[%emt 0:02:30]} 42. Qc8+ {[%emt 0:00:56]} Qf8 {[%emt 0:00:24]} 43. Qd7 {[%emt 0:00:22]} Qg7 {[%emt 0:00:34]} 44. Qe6 {[%emt 0:01:16]} 1-0

[Event "24th Barcelona Open-A 2019"]
[Site "Barcelona"]
[Date "2019.10.04"]
[Round "8.4"]
[White "Lagarde, Maxime"]
[Black "Semenov, Dmitri"]
[Result "1/2-1/2"]
[ECO "C46"]
[WhiteElo "2657"]
[BlackElo "2366"]
[Annotator "ChessBase"]
[PlyCount "100"]
[EventDate "2019.09.27"]
[EventType "swiss"]
[EventCountry "ESP"]
[SourceTitle "playchess.com"]
[Source "ChessBase"]
[SourceQuality "1"]
[TimeControl "5400+30"]

1. e4 {[%emt 0:00:00]} e5 2. Nf3 {[%emt 0:00:00]} Nc6 {[%emt 0:08:09]} 3. Nc3 Bc5 4. Nxe5 {[%emt 0:00:49]} Nxe5 {[%emt 0:01:20]} 5. d4 {[%emt 0:00:06]} Bd6 6. dxe5 {[%emt 0:02:10]} Bxe5 {[%emt 0:00:04]} 7. Bd3 {[%emt 0:01:41]} Ne7 {[%emt 0:02:00]} 8. Bg5 {[%emt 0:04:41]} c6 {[%emt 0:00:51]} 9. Qd2 {[%emt 0:01:05]} h6 {[%emt 0:03:53]} 10. Be3 {[%emt 0:07:46]} d5 {[%emt 0:06:49]} 11. O-O-O {[%emt 0:13:12]} Qa5 12. exd5 {[%emt 0:00:24]} Bxc3 {[%emt 0:05:05]} 13. Qxc3 Qxc3 {[%emt 0:00:15]} 14. bxc3 {[%emt 0:00:34]} Nxd5 {[%emt 0:00:32]} 15. Bc5 {[%emt 0:07:03]} Be6 {[%emt 0:02:04]} 16. Rhe1 {[%emt 0:09:39]} b6 {[%emt 0:11:31]} 17. Ba3 {[%emt 0:05:01]} O-O-O {[%emt 0:00:30]} 18. Bb2 {[%emt 0:07:27]} Kb7 {[%emt 0:18:49]} 19. c4 {[%emt 0:05:47]} Nb4 20. Bxg7 {[%emt 0:00:59]} Rhg8 {[%emt 0:01:11]} 21. Bf6 Nxd3+ {[%emt 0:11:39]} 22. cxd3 {[%emt 0:00:35]} Rde8 {[%emt 0:00:39]} 23. Bh4 {[%emt 0:04:03]} Bf5 {[%emt 0:10:16]} 24. Kd2 {[%emt 0:07:03]} c5 25. Re3 {[%emt 0:00:06]} Rxe3 {[%emt 0:03:04]} 26. Kxe3 {[%emt 0:03:49]} Re8+ {[%emt 0:00:42]} 27. Kf3 {[%emt 0:00:45]} a6 {[%emt 0:01:06]} 28. g4 Bg6 {[%emt 0:00:09]} 29. a4 {[%emt 0:02:23]} Kc6 {[%emt 0:00:55]} 30. Bg3 {[%emt 0:04:08]} h5 {[%emt 0:02:43]} 31. h3 {[%emt 0:03:04]} Re6 {[%emt 0:01:49]} 32. Kf4 {[%emt 0:02:38]} hxg4 {[%emt 0:01:31]} 33. Kxg4 {[%emt 0:03:19]} Re8 {[%emt 0:00:20]} 34. h4 {[%emt 0:00:47]} Rh8 {[%emt 0:00:37]} 35. Rd2 {[%emt 0:01:13]} Rg8 {[%emt 0:05:01]} 36. Kg5 {[%emt 0:02:07]} Rh8 {[%emt 0:00:21]} 37. Kf6 {[%emt 0:00:38]} Rd8 {[%emt 0:01:23]} 38. f4 {[%emt 0:00:27]} Rd6+ {[%emt 0:00:36]} 39. Kg5 Bxd3 {[%emt 0:00:02]} 40. f5 {[%emt 0:02:39]} f6+ {[%emt 0:00:55]} 41. Kh6 {[%emt 0:00:56]} Rd4 {[%emt 0:00:20]} 42. Bf2 {[%emt 0:00:48]} Rd7 {[%emt 0:02:00]} 43. h5 Bxf5 {[%emt 0:00:30]} 44. Rxd7 {[%emt 0:00:36]} Kxd7 {[%emt 0:00:02]} 45. Kg7 {[%emt 0:00:16]} Kc6 46. Kxf6 {[%emt 0:00:04]} Bd3 {[%emt 0:00:36]} 47. h6 {[%emt 0:00:27]} b5 {[%emt 0:00:00]} 48. axb5+ axb5 49. cxb5+ {[%emt 0:00:34]} Kxb5 {[%emt 0:00:27]} 50. Bxc5 {[%emt 0:00:03]} Kxc5 1/2-1/2

[Event "24th Barcelona Open-A 2019"]
[Site "Barcelona"]
[Date "2019.10.04"]
[Round "8.5"]
[White "Sosa, Tomas"]
[Black "Firman, Nazar"]
[Result "1-0"]
[ECO "C04"]
[WhiteElo "2524"]
[BlackElo "2495"]
[Annotator "ChessBase"]
[PlyCount "53"]
[EventDate "2019.09.27"]
[EventType "swiss"]
[EventCountry "ESP"]
[SourceTitle "playchess.com"]
[Source "ChessBase"]
[SourceQuality "1"]
[TimeControl "5400+30"]

1. e4 e6 2. d4 {[%emt 0:03:15]} d5 {[%emt 0:03:30]} 3. Nd2 {[%emt 0:00:44]} Nc6 {[%emt 0:00:34]} 4. Ngf3 Nf6 {[%emt 0:00:04]} 5. e5 {[%emt 0:00:38]} Nd7 {[%emt 0:07:36]} 6. Be2 {[%emt 0:01:38]} f6 {[%emt 0:00:30]} 7. exf6 {[%emt 0:00:59]} Qxf6 {[%emt 0:01:10]} 8. Nf1 {[%emt 0:00:32]} Bd6 {[%emt 0:10:18]} 9. Ne3 {[%emt 0:02:48]} Nb6 {[%emt 0:03:46]} 10. O-O {[%emt 0:16:58]} Bd7 {[%emt 0:01:58]} 11. Ng4 {[%emt 0:00:37]} Qf5 {[%emt 0:12:10]} 12. Nh4 {[%emt 0:04:13]} Qf8 {[%emt 0:17:32]} 13. Bg5 {[%emt 0:27:24]} Nc8 {[%emt 0:06:31]} 14. f4 {[%emt 0:07:25]} Nxd4 15. Ne5 {[%emt 0:00:05]} Nxe2+ {[%emt 0:13:39]} 16. Qxe2 {[%emt 0:00:36]} Ne7 {[%emt 0:04:18]} 17. f5 {[%emt 0:07:06]} exf5 {[%emt 0:03:00]} 18. Nxd7 {[%emt 0:00:29]} Kxd7 {[%emt 0:02:20]} 19. Rae1 {[%emt 0:02:28]} Re8 {[%emt 0:00:06]} 20. Qe6+ {[%emt 0:02:15]} Kc6 {[%emt 0:05:59]} 21. Nf3 {[%emt 0:05:03]} Kb6 {[%emt 0:04:07]} 22. Ne5 {[%emt 0:01:57]} Qg8 {[%emt 0:00:52]} 23. Nf7 {[%emt 0:07:35]} h6 {[%emt 0:00:20]} 24. Be3+ {[%emt 0:03:30]} Ka6 {[%emt 0:00:53]} 25. Rf4 {[%emt 0:00:28]} b5 26. a4 {[%emt 0:00:11]} b4 {[%emt 0:00:56]} 27. Qd7 {[%emt 0:00:06]} 1-0

[Event "24th Barcelona Open-A 2019"]
[Site "Barcelona"]
[Date "2019.10.04"]
[Round "8.6"]
[White "Edouard, Romain"]
[Black "Ladron De Guevara Pinto, Paolo"]
[Result "1-0"]
[ECO "A14"]
[WhiteElo "2640"]
[BlackElo "2447"]
[Annotator "ChessBase"]
[PlyCount "67"]
[EventDate "2019.09.27"]
[EventType "swiss"]
[EventCountry "ESP"]
[SourceTitle "playchess.com"]
[Source "ChessBase"]
[SourceQuality "1"]
[TimeControl "5400+30"]

1. c4 {[%emt 0:00:00]} e6 {[%emt 0:00:00]} 2. g3 {[%emt 0:00:39]} d5 {[%emt 0:00:00]} 3. Bg2 {[%emt 0:00:04]} Nf6 {[%emt 0:00:00]} 4. Nf3 {[%emt 0:00:03]} Be7 {[%emt 0:00:00]} 5. O-O {[%emt 0:00:05]} O-O {[%emt 0:00:00]} 6. d4 {[%emt 0:00:18]} dxc4 {[%emt 0:00:06]} 7. Qc2 {[%emt 0:00:03]} b5 {[%emt 0:00:07]} 8. a4 {[%emt 0:02:21]} b4 {[%emt 0:00:06]} 9. Nfd2 {[%emt 0:00:56]} Nd5 {[%emt 0:00:05]} 10. Nxc4 {[%emt 0:00:34]} Ba6 {[%emt 0:01:13]} 11. Rd1 {[%emt 0:05:45]} c5 {[%emt 0:00:16]} 12. e4 {[%emt 0:17:06]} Nf6 {[%emt 0:00:49]} 13. d5 {[%emt 0:01:51]} Bxc4 {[%emt 0:12:54]} 14. Qxc4 {[%emt 0:01:10]} Nc6 {[%emt 0:04:38]} 15. Bf4 {[%emt 0:22:27]} e5 {[%emt 0:15:16]} 16. Qf1 {[%emt 0:01:21]} exf4 {[%emt 0:01:38]} 17. dxc6 {[%emt 0:00:02]} Qc7 {[%emt 0:01:41]} 18. Nd2 {[%emt 0:00:05]} Ng4 {[%emt 0:01:42]} 19. Nc4 {[%emt 0:03:36]} fxg3 {[%emt 0:24:31]} 20. hxg3 {[%emt 0:00:19]} Qxc6 {[%emt 0:02:57]} 21. e5 {[%emt 0:00:07]} Qh6 {[%emt 0:00:03]} 22. Qe2 {[%emt 0:00:03]} Qh2+ {[%emt 0:03:37]} 23. Kf1 {[%emt 0:00:04]} Qh5 {[%emt 0:00:41]} 24. Bxa8 {[%emt 0:00:26]} Rxa8 {[%emt 0:00:04]} 25. Qe4 {[%emt 0:00:06]} Rf8 {[%emt 0:01:40]} 26. Rd5 {[%emt 0:10:06]} Nh2+ {[%emt 0:05:14]} 27. Kg2 {[%emt 0:00:15]} Ng4 {[%emt 0:00:03]} 28. Qf3 {[%emt 0:00:41]} f5 {[%emt 0:08:16]} 29. Rh1 {[%emt 0:00:52]} Qg6 {[%emt 0:00:12]} 30. Qd3 {[%emt 0:03:07]} f4 {[%emt 0:00:31]} 31. Qxg6 {[%emt 0:00:22]} f3+ {[%emt 0:00:04]} 32. Kf1 {[%emt 0:00:17]} hxg6 {[%emt 0:00:04]} 33. Rd7 {[%emt 0:01:06]} Kf7 {[%emt 0:01:36]} 34. Rh4 {[%emt 0:00:11]} 1-0

[Event "24th Barcelona Open-A 2019"]
[Site "Barcelona"]
[Date "2019.10.04"]
[Round "8.7"]
[White "Ivanisevic, Ivan"]
[Black "Krishna Teja, N."]
[Result "1-0"]
[ECO "A36"]
[WhiteElo "2618"]
[BlackElo "2364"]
[Annotator "ChessBase"]
[PlyCount "197"]
[EventDate "2019.09.27"]
[EventType "swiss"]
[EventCountry "ESP"]
[SourceTitle "playchess.com"]
[Source "ChessBase"]
[SourceQuality "1"]
[TimeControl "5400+30"]

1. c4 {[%emt 0:01:08]} c5 {[%emt 0:16:01]} 2. g3 {[%emt 0:00:25]} g6 {[%emt 0:01:05]} 3. Bg2 {[%emt 0:00:06]} Bg7 {[%emt 0:00:03]} 4. Nc3 {[%emt 0:00:08]} Nc6 {[%emt 0:00:06]} 5. b3 {[%emt 0:00:11]} b6 {[%emt 0:02:37]} 6. Bb2 {[%emt 0:00:40]} Bb7 {[%emt 0:02:02]} 7. Qb1 {[%emt 0:01:35]} d6 {[%emt 0:11:43]} 8. Nd5 {[%emt 0:03:55]} e5 {[%emt 0:01:10]} 9. f4 {[%emt 0:02:24]} Nge7 {[%emt 0:00:48]} 10. e3 Nxd5 {[%emt 0:03:06]} 11. Bxd5 {[%emt 0:07:08]} Qd7 {[%emt 0:00:34]} 12. Nf3 {[%emt 0:01:09]} Ne7 {[%emt 0:06:52]} 13. Bxb7 {[%emt 0:01:11]} Qxb7 {[%emt 0:00:10]} 14. O-O {[%emt 0:00:04]} f6 {[%emt 0:01:46]} 15. d4 {[%emt 0:04:21]} O-O {[%emt 0:05:01]} 16. d5 {[%emt 0:04:08]} b5 {[%emt 0:03:26]} 17. Bc3 {[%emt 0:02:09]} a5 {[%emt 0:04:07]} 18. a4 {[%emt 0:03:04]} b4 {[%emt 0:00:13]} 19. Bb2 {[%emt 0:05:48]} Qd7 {[%emt 0:00:56]} 20. Qd3 {[%emt 0:01:23]} Qf5 {[%emt 0:05:50]} 21. e4 {[%emt 0:02:03]} Qg4 {[%emt 0:02:30]} 22. Nh4 {[%emt 0:03:02]} g5 {[%emt 0:04:44]} 23. Ng2 {[%emt 0:03:24]} Qh3 {[%emt 0:02:10]} 24. Rf3 {[%emt 0:03:47]} Rf7 {[%emt 0:02:04]} 25. Raf1 {[%emt 0:01:43]} Raf8 {[%emt 0:00:07]} 26. g4 {[%emt 0:06:06]} Qxg4 {[%emt 0:03:39]} 27. f5 {[%emt 0:00:06]} Ng6 {[%emt 0:00:56]} 28. Rg3 {[%emt 0:03:07]} Qh5 {[%emt 0:00:29]} 29. fxg6 {[%emt 0:00:07]} hxg6 {[%emt 0:00:55]} 30. Bc1 {[%emt 0:05:36]} g4 {[%emt 0:02:16]} 31. h3 {[%emt 0:01:55]} f5 {[%emt 0:01:25]} 32. Qd1 {[%emt 0:02:30]} Qh7 {[%emt 0:05:06]} 33. hxg4 {[%emt 0:02:27]} f4 {[%emt 0:00:07]} 34. Rgf3 {[%emt 0:00:06]} g5 {[%emt 0:00:08]} 35. Qd3 {[%emt 0:00:12]} Rf6 {[%emt 0:01:09]} 36. Rh3 {[%emt 0:02:25]} Rh6 {[%emt 0:00:03]} 37. Rxh6 {[%emt 0:00:14]} Qxh6 {[%emt 0:03:23]} 38. Rf3 {[%emt 0:00:16]} Kf7 {[%emt 0:00:09]} 39. Rh3 {[%emt 0:00:55]} Qg6 {[%emt 0:00:02]} 40. Rh5 {[%emt 0:02:01]} Rh8 {[%emt 0:01:21]} 41. Qf3 {[%emt 0:00:05]} Bf6 {[%emt 0:00:29]} 42. Ne1 {[%emt 0:00:54]} Rc8 {[%emt 0:03:36]} 43. Nd3 {[%emt 0:00:25]} Kg7 {[%emt 0:00:06]} 44. Bd2 {[%emt 0:00:43]} Rc7 {[%emt 0:00:00]} 45. Nf2 {[%emt 0:00:18]} Rc8 {[%emt 0:00:53]} 46. Qh1 {[%emt 0:01:12]} Be7 {[%emt 0:00:16]} 47. Kg2 {[%emt 0:00:12]} Bf6 {[%emt 0:00:11]} 48. Kf3 {[%emt 0:00:05]} Be7 {[%emt 0:00:07]} 49. Nd3 {[%emt 0:01:34]} Bf6 {[%emt 0:00:23]} 50. Bc1 {[%emt 0:00:19]} Be7 {[%emt 0:00:16]} 51. Bb2 {[%emt 0:00:07]} Bf6 {[%emt 0:00:24]} 52. Qg1 {[%emt 0:00:37]} Rc7 {[%emt 0:00:37]} 53. Bc1 {[%emt 0:03:03]} Rc8 {[%emt 0:01:07]} 54. Bd2 {[%emt 0:00:06]} Be7 {[%emt 0:00:24]} 55. Be1 {[%emt 0:00:22]} Rh8 {[%emt 0:01:24]} 56. Qh2 {[%emt 0:00:20]} Rxh5 {[%emt 0:02:19]} 57. Qxh5 {[%emt 0:00:10]} Bd8 {[%emt 0:00:17]} 58. Bd2 {[%emt 0:00:46]} Be7 {[%emt 0:00:39]} 59. Bc1 {[%emt 0:01:14]} Bd8 {[%emt 0:00:21]} 60. Bb2 {[%emt 0:00:15]} Bf6 {[%emt 0:00:15]} 61. Bc1 {[%emt 0:03:57]} Be7 {[%emt 0:00:15]} 62. Bd2 {[%emt 0:00:07]} Bd8 {[%emt 0:00:09]} 63. Be1 {[%emt 0:00:10]} Bc7 {[%emt 0:00:11]} 64. Bf2 {[%emt 0:00:23]} Bb6 {[%emt 0:00:05]} 65. Bg1 {[%emt 0:00:54]} Ba7 {[%emt 0:00:07]} 66. Nf2 {[%emt 0:09:17]} Bb6 {[%emt 0:00:05]} 67. Ke2 {[%emt 0:00:06]} Bc7 {[%emt 0:00:51]} 68. Qh1 {[%emt 0:00:29]} Bd8 {[%emt 0:00:48]} 69. Nd3 {[%emt 0:00:13]} Bb6 {[%emt 0:00:13]} 70. Bf2 {[%emt 0:00:18]} Ba7 {[%emt 0:00:39]} 71. Kd2 {[%emt 0:01:13]} Bb6 {[%emt 0:00:16]} 72. Ne1 {[%emt 0:01:12]} Qh7 {[%emt 0:02:39]} 73. Qg2 {[%emt 0:00:58]} Kf6 {[%emt 0:00:30]} 74. Kd3 {[%emt 0:00:05]} Kg6 {[%emt 0:00:28]} 75. Nf3 {[%emt 0:00:07]} Qh8 {[%emt 0:00:16]} 76. Be1 {[%emt 0:02:13]} Bd8 {[%emt 0:00:20]} 77. Bd2 {[%emt 0:00:05]} Bc7 {[%emt 0:00:33]} 78. Kc2 {[%emt 0:01:28]} Bd8 {[%emt 0:00:24]} 79. Ne1 {[%emt 0:00:45]} Bb6 {[%emt 0:00:54]} 80. Nd3 {[%emt 0:00:05]} Bc7 {[%emt 0:00:27]} 81. Be1 {[%emt 0:00:13]} Bb6 {[%emt 0:00:44]} 82. Bf2 {[%emt 0:00:07]} Kf6 {[%emt 0:00:32]} 83. Kd1 {[%emt 0:01:28]} Kg6 {[%emt 0:00:42]} 84. Ke2 {[%emt 0:00:26]} Kf6 {[%emt 0:00:38]} 85. Ne1 {[%emt 0:00:40]} Qh7 {[%emt 0:00:24]} 86. Kf1 {[%emt 0:00:23]} Qh8 {[%emt 0:00:21]} 87. Nf3 {[%emt 0:00:18]} Kg6 {[%emt 0:00:14]} 88. Kg1 {[%emt 0:00:49]} Ba7 {[%emt 0:00:37]} 89. Bh4 {[%emt 0:00:56]} gxh4 {[%emt 0:01:38]} 90. g5 {[%emt 0:00:38]} Qh5 {[%emt 0:01:32]} 91. Qh3 {[%emt 0:00:07]} Bb8 {[%emt 0:00:21]} 92. Kf2 {[%emt 0:00:14]} Kg7 {[%emt 0:00:26]} 93. Qd7+ {[%emt 0:02:37]} Kg8 {[%emt 0:00:53]} 94. Qc8+ {[%emt 0:00:18]} Kg7 {[%emt 0:00:06]} 95. Qb7+ {[%emt 0:00:17]} Qf7 {[%emt 0:00:28]} 96. Qxb8 {[%emt 0:00:21]} Qd7 {[%emt 0:00:02]} 97. Nxh4 {[%emt 0:00:19]} Qh3 {[%emt 0:00:21]} 98. Nf5+ {[%emt 0:00:32]} Kf7 {[%emt 0:00:04]} 99. Qc7+ {[%emt 0:00:07]} 1-0